[Event "FIDE WYCC Girls U14 2023"]
[Site "Montesilvano"]
[Date "2023.11.17"]
[Round "5.19"]
[White "Skramstad, Oda Kofoed"]
[Black "Cutiyog, Jirah Floravie"]
[Result "1/2-1/2"]
[ECO "E91"]
[WhiteElo "1801"]
[BlackElo "1305"]
[Annotator "NA"]
[PlyCount "147"]
[EventDate "2023.11.13"]
[EventType "swiss"]
[EventCountry "ITA"]
[SourceTitle "playchess.com"]
[Source "ChessBase"]
[SourceQuality "1"]
[TimeControl "40/5400+30:1800+30"]

1. d4 {[%emt 0:01:12]} Nf6 {[%emt 0:00:14]} 2. c4 {[%emt 0:00:44]} g6 {[%emt 0:00:12]} 3. Nc3 {[%emt 0:00:44]} Bg7 {[%emt 0:00:11]} 4. e4 {[%emt 0:00:39]} d6 {[%emt 0:00:12]} 5. Nf3 {[%emt 0:00:43]} O-O {[%emt 0:01:00]} 6. Be2 {[%emt 0:01:21]} Nbd7 {[%emt 0:01:52]} 7. O-O {[%emt 0:04:08]} e5 {[%emt 0:03:15]} 8. a3 {[%emt 0:05:01]} Re8 {[%emt 0:01:24]} 9. d5 {[%emt 0:06:43]} Nc5 {[%emt 0:03:31]} 10. Qc2 {[%emt 0:01:14]} Ng4 {[%emt 0:04:54]} 11. b4 {[%emt 0:03:46]} Na6 {[%emt 0:03:12]} 12. Bg5 {[%emt 0:15:59]} f6 {[%emt 0:07:58]} 13. Bh4 {[%emt 0:01:00]} g5 {[%emt 0:00:28]} 14. Bg3 {[%emt 0:01:10]} Nh6 {[%emt 0:00:46]} 15. Nd2 {[%emt 0:05:40]} c5 {[%emt 0:12:28]} 16. bxc5 {[%emt 0:04:29]} Nxc5 {[%emt 0:05:56]} 17. f3 {[%emt 0:00:42]} f5 {[%emt 0:03:53]} 18. exf5 {[%emt 0:03:40]} Nxf5 {[%emt 0:01:24]} 19. Bf2 {[%emt 0:02:09]} Nd4 {[%emt 0:00:39]} 20. Qd1 {[%emt 0:15:35]} Nxe2+ {[%emt 0:02:57]} 21. Nxe2 {[%emt 0:00:46]} e4 {[%emt 0:02:40]} 22. Bd4 {[%emt 0:00:11]} Bxd4+ {[%emt 0:00:22]} 23. Nxd4 {[%emt 0:00:10]} e3 {[%emt 0:00:06]} 24. Ne4 {[%emt 0:03:44]} Nxe4 25. fxe4 {[%emt 0:00:09]} Rxe4 {[%emt 0:05:13]} 26. Qd3 {[%emt 0:00:14]} Re5 {[%emt 0:00:25]} 27. Rae1 {[%emt 0:02:05]} Qe7 {[%emt 0:02:03]} 28. Rf3 {[%emt 0:01:01]} e2 {[%emt 0:10:14]} 29. Rxe2 {[%emt 0:02:56]} Rxe2 {[%emt 0:02:25]} 30. Qxe2 {[%emt 0:04:56]} Qxe2 {[%emt 0:01:26]} 31. Nxe2 {[%emt 0:00:02]} Bg4 {[%emt 0:00:10]} 32. Re3 {[%emt 0:00:02]} Bxe2 {[%emt 0:00:24]} 33. Rxe2 {[%emt 0:00:02]} Rc8 {[%emt 0:07:31]} 34. Re4 {[%emt 0:00:52]} Kf7 {[%emt 0:00:25]} 35. Kf2 {[%emt 0:00:27]} Re8 {[%emt 0:00:49]} 36. Rd4 {[%emt 0:01:10]} Kf6 {[%emt 0:00:25]} 37. a4 {[%emt 0:04:09]} b6 {[%emt 0:00:27]} 38. h3 {[%emt 0:03:29]} Ke5 {[%emt 0:06:56]} 39. Rd1 {[%emt 0:02:10]} Kf5 {[%emt 0:01:37]} 40. a5 {[%emt 0:00:00]} Re4 {[%emt 0:00:00]} 41. axb6 {[%emt 0:05:42]} axb6 {[%emt 0:02:56]} 42. Rb1 {[%emt 0:01:40]} Rxc4 {[%emt 0:00:08]} 43. Rxb6 {[%emt 0:00:14]} Ke5 {[%emt 0:00:13]} 44. Rb7 {[%emt 0:00:33]} Rh4 {[%emt 0:00:28]} 45. Rb5 {[%emt 0:00:59]} h6 {[%emt 0:00:58]} 46. Ke3 {[%emt 0:04:36]} Re4+ {[%emt 0:01:20]} 47. Kd3 {[%emt 0:01:12]} Rd4+ {[%emt 0:00:21]} 48. Ke3 {[%emt 0:00:08]} Rxd5 {[%emt 0:00:44]} 49. Rb8 {[%emt 0:00:21]} Rd4 {[%emt 0:01:50]} 50. g3 {[%emt 0:00:59]} Ra4 {[%emt 0:04:59]} 51. Rh8 {[%emt 0:02:00]} Ra3+ {[%emt 0:00:40]} 52. Kf2 {[%emt 0:00:10]} Ke4 {[%emt 0:00:41]} 53. Rxh6 {[%emt 0:00:55]} Ra2+ {[%emt 0:00:19]} 54. Ke1 {[%emt 0:00:11]} Kf3 {[%emt 0:08:09]} 55. Rxd6 {[%emt 0:09:28]} Kxg3 {[%emt 0:00:10]} 56. Rd3+ {[%emt 0:00:12]} Kh4 {[%emt 0:00:10]} 57. Kf1 {[%emt 0:01:23]} Rh2 {[%emt 0:00:09]} 58. Rd4+ {[%emt 0:01:15]} Kxh3 {[%emt 0:00:17]} 59. Rd3+ {[%emt 0:00:52]} Kh4 {[%emt 0:01:02]} 60. Ra3 {[%emt 0:03:28]} Rb2 {[%emt 0:00:33]} 61. Kg1 {[%emt 0:00:23]} Rb4 {[%emt 0:02:09]} 62. Kh2 {[%emt 0:01:34]} Rf4 {[%emt 0:02:10]} 63. Kg2 {[%emt 0:00:35]} Kg4 {[%emt 0:00:49]} 64. Rb3 {[%emt 0:01:15]} Ra4 {[%emt 0:00:36]} 65. Rc3 {[%emt 0:01:21]} Kf4 {[%emt 0:00:19]} 66. Rb3 {[%emt 0:00:29]} g4 {[%emt 0:00:22]} 67. Rc3 {[%emt 0:00:35]} Ra2+ {[%emt 0:00:07]} 68. Kg1 {[%emt 0:00:08]} Kg5 {[%emt 0:01:17]} 69. Rb3 {[%emt 0:00:56]} Kh4 {[%emt 0:02:03]} 70. Rc3 {[%emt 0:00:40]} Re2 {[%emt 0:01:40]} 71. Ra3 {[%emt 0:00:43]} g3 {[%emt 0:03:41]} 72. Ra8 {[%emt 0:00:12]} Re1+ {[%emt 0:01:52]} 73. Kg2 {[%emt 0:00:12]} Re2+ {[%emt 0:00:08]} 74. Kg1 1/2-1/2

[Event "FIDE WYCC Girls U14 2023"]
[Site "Montesilvano"]
[Date "2023.11.17"]
[Round "5.20"]
[White "Jankovic, Tamara"]
[Black "Lorenz, Veronika"]
[Result "1/2-1/2"]
[ECO "C23"]
[WhiteElo "1711"]
[BlackElo "1791"]
[Annotator "NA"]
[PlyCount "117"]
[EventDate "2023.11.13"]
[EventType "swiss"]
[EventCountry "ITA"]
[SourceTitle "playchess.com"]
[Source "ChessBase"]
[SourceQuality "1"]
[TimeControl "40/5400+30:1800+30"]

1. e4 {[%emt 0:00:03]} e5 {[%emt 0:00:01]} 2. Nf3 {[%emt 0:00:10]} Nc6 {[%emt 0:00:00]} 3. Bc4 {[%emt 0:00:10]} Bc5 {[%emt 0:00:06]} 4. c3 {[%emt 0:00:08]} d6 {[%emt 0:00:03]} 5. d4 {[%emt 0:00:22]} exd4 {[%emt 0:00:05]} 6. cxd4 {[%emt 0:00:06]} Bb6 {[%emt 0:00:01]} 7. O-O {[%emt 0:00:24]} Nf6 {[%emt 0:00:19]} 8. Nc3 {[%emt 0:00:30]} O-O {[%emt 0:00:15]} 9. h3 {[%emt 0:00:36]} Nxe4 {[%emt 0:00:43]} 10. Nxe4 {[%emt 0:04:24]} d5 {[%emt 0:00:00]} 11. Bxd5 {[%emt 0:00:09]} Qxd5 {[%emt 0:00:02]} 12. Nc3 {[%emt 0:00:33]} Qh5 {[%emt 0:05:54]} 13. Bf4 {[%emt 0:12:40]} Be6 {[%emt 0:05:59]} 14. d5 {[%emt 0:25:19]} Rad8 {[%emt 0:02:09]} 15. Ng5 {[%emt 0:01:08]} Qg6 {[%emt 0:04:43]} 16. Qd2 {[%emt 0:26:35]} h6 {[%emt 0:04:18]} 17. Nxe6 {[%emt 0:00:21]} fxe6 {[%emt 0:00:06]} 18. Rad1 {[%emt 0:04:59]} exd5 {[%emt 0:22:21]} 19. Nxd5 {[%emt 0:09:08]} Qf7 {[%emt 0:19:37]} 20. Be3 {[%emt 0:03:47]} Ba5 {[%emt 0:00:32]} 21. Qd3 {[%emt 0:01:56]} Nb4 {[%emt 0:00:46]} 22. Nxb4 {[%emt 0:02:01]} Rxd3 {[%emt 0:00:08]} 23. Nxd3 {[%emt 0:00:04]} Bb6 {[%emt 0:10:54]} 24. Bxb6 {[%emt 0:00:25]} axb6 {[%emt 0:00:10]} 25. a3 {[%emt 0:00:05]} Qb3 {[%emt 0:00:58]} 26. Rd2 {[%emt 0:00:53]} c5 {[%emt 0:02:44]} 27. Re1 {[%emt 0:02:52]} c4 {[%emt 0:00:59]} 28. Nb4 {[%emt 0:00:41]} Rf7 {[%emt 0:05:42]} 29. Re3 {[%emt 0:00:31]} Qa4 {[%emt 0:00:08]} 30. Nd5 {[%emt 0:00:28]} Qa5 {[%emt 0:02:44]} 31. Nc3 {[%emt 0:02:17]} Qf5 {[%emt 0:07:41]} 32. Rf3 {[%emt 0:00:52]} Qe6 {[%emt 0:02:25]} 33. Re3 {[%emt 0:00:39]} Qc6 {[%emt 0:02:58]} 34. Nd5 {[%emt 0:00:02]} Qc5 {[%emt 0:00:31]} 35. Nc3 {[%emt 0:01:24]} Kh7 {[%emt 0:00:39]} 36. Ne4 {[%emt 0:00:57]} Qc7 {[%emt 0:00:00]} 37. Nc3 {[%emt 0:00:33]} Rd7 {[%emt 0:01:37]} 38. Nd5 {[%emt 0:00:32]} Qd8 {[%emt 0:00:26]} 39. Re5 {[%emt 0:00:22]} b5 {[%emt 0:00:28]} 40. Kf1 {[%emt 0:00:00]} Rd6 {[%emt 0:00:00]} 41. Ke2 {[%emt 0:05:09]} Qf8 {[%emt 0:12:31]} 42. g3 {[%emt 0:07:16]} Qc8 {[%emt 0:04:31]} 43. g4 {[%emt 0:00:58]} Qd8 {[%emt 0:01:15]} 44. f4 {[%emt 0:08:03]} Qh4 {[%emt 0:02:23]} 45. Re3 {[%emt 0:00:20]} Qd8 {[%emt 0:00:08]} 46. Re5 {[%emt 0:00:07]} Qc8 {[%emt 0:02:15]} 47. Kd1 {[%emt 0:05:33]} Qc6 {[%emt 0:02:56]} 48. f5 {[%emt 0:01:50]} c3 49. bxc3 {[%emt 0:05:23]} Qc4 {[%emt 0:02:25]} 50. Ke1 {[%emt 0:00:37]} b6 {[%emt 0:06:28]} 51. Kf2 {[%emt 0:00:56]} Qc5+ {[%emt 0:01:09]} 52. Kf1 {[%emt 0:00:13]} Qc4+ {[%emt 0:00:01]} 53. Kf2 {[%emt 0:00:01]} Kg8 {[%emt 0:01:11]} 54. Re8+ {[%emt 0:00:19]} Kh7 {[%emt 0:00:13]} 55. Re5 {[%emt 0:00:05]} Qc5+ {[%emt 0:00:50]} 56. Kf1 {[%emt 0:00:07]} Qc6 {[%emt 0:00:29]} 57. Kf2 {[%emt 0:00:48]} Qd7 {[%emt 0:00:22]} 58. Kg3 {[%emt 0:01:55]} Qd8 {[%emt 0:00:18]} 59. h4 {[%emt 0:00:13]} 1/2-1/2

[Event "FIDE WYCC Girls U14 2023"]
[Site "Montesilvano"]
[Date "2023.11.17"]
[Round "5.21"]
[White "Gaszka, Zuzanna"]
[Black "Blauhut, Anna"]
[Result "1-0"]
[ECO "C26"]
[WhiteElo "1758"]
[BlackElo "1640"]
[Annotator "NA"]
[PlyCount "69"]
[EventDate "2023.11.13"]
[EventType "swiss"]
[EventCountry "ITA"]
[SourceTitle "playchess.com"]
[Source "ChessBase"]
[SourceQuality "1"]
[TimeControl "40/5400+30:1800+30"]

1. e4 {[%emt 0:00:01]} e5 {[%emt 0:00:20]} 2. Nc3 {[%emt 0:00:05]} Nf6 {[%emt 0:00:29]} 3. Bc4 {[%emt 0:00:07]} Bc5 {[%emt 0:02:20]} 4. d3 {[%emt 0:00:12]} a6 {[%emt 0:02:28]} 5. f4 {[%emt 0:04:35]} d6 {[%emt 0:03:10]} 6. f5 {[%emt 0:05:11]} c6 {[%emt 0:01:50]} 7. Qf3 {[%emt 0:02:19]} Nbd7 {[%emt 0:03:07]} 8. Nge2 {[%emt 0:09:41]} Nb6 {[%emt 0:01:54]} 9. Bb3 {[%emt 0:01:29]} Bd7 {[%emt 0:06:36]} 10. Bd2 {[%emt 0:06:32]} Qc7 {[%emt 0:02:15]} 11. Qg3 {[%emt 0:03:53]} Ke7 {[%emt 0:08:50]} 12. Qxg7 {[%emt 0:03:12]} d5 {[%emt 0:02:15]} 13. exd5 {[%emt 0:02:34]} Rag8 {[%emt 0:01:25]} 14. d6+ {[%emt 0:08:57]} Qxd6 {[%emt 0:00:12]} 15. Qxf7+ {[%emt 0:00:31]} Kd8 {[%emt 0:00:15]} 16. O-O-O {[%emt 0:01:21]} Kc8 {[%emt 0:07:05]} 17. Ne4 {[%emt 0:02:24]} Nxe4 {[%emt 0:01:24]} 18. dxe4 {[%emt 0:00:07]} Rxg2 {[%emt 0:06:18]} 19. Ng3 {[%emt 0:05:23]} Rxd2 {[%emt 0:10:42]} 20. Rxd2 {[%emt 0:00:07]} Be3 {[%emt 0:00:05]} 21. Rhd1 {[%emt 0:00:25]} Rd8 {[%emt 0:05:04]} 22. Nf1 {[%emt 0:02:37]} Bxd2+ {[%emt 0:01:14]} 23. Nxd2 {[%emt 0:05:00]} Qh6 {[%emt 0:02:21]} 24. a4 {[%emt 0:01:52]} Kc7 {[%emt 0:03:58]} 25. Kb1 {[%emt 0:03:04]} Qxh2 {[%emt 0:02:00]} 26. a5 {[%emt 0:01:42]} Nc8 {[%emt 0:00:26]} 27. Nc4 {[%emt 0:04:59]} Qe2 {[%emt 0:01:47]} 28. Rd3 {[%emt 0:01:43]} Qxe4 {[%emt 0:02:31]} 29. f6 {[%emt 0:02:27]} Qf5 {[%emt 0:04:33]} 30. Nb6 {[%emt 0:08:49]} e4 {[%emt 0:03:14]} 31. Rc3 {[%emt 0:01:57]} Nd6 {[%emt 0:02:25]} 32. Nd5+ {[%emt 0:01:57]} Kb8 {[%emt 0:01:27]} 33. Qe7 {[%emt 0:00:12]} Nf7 {[%emt 0:01:54]} 34. Ne3 {[%emt 0:01:08]} Qxa5 {[%emt 0:03:31]} 35. Bxf7 {[%emt 0:00:33]} 1-0

[Event "FIDE WYCC Girls U14 2023"]
[Site "Montesilvano"]
[Date "2023.11.17"]
[Round "5.22"]
[White "Saparya Ghosh"]
[Black "Mueller, Riyanna"]
[Result "*"]
[ECO "D20"]
[WhiteElo "1659"]
[BlackElo "1754"]
[Annotator "NA"]
[PlyCount "82"]
[EventDate "2023.11.13"]
[EventType "swiss"]
[EventCountry "ITA"]
[SourceTitle "playchess.com"]
[Source "ChessBase"]
[SourceQuality "1"]
[TimeControl "40/5400+30:1800+30"]

1. d4 {[%emt 0:00:21]} d5 {[%emt 0:00:09]} 2. c4 {[%emt 0:00:06]} dxc4 {[%emt 0:00:06]} 3. e3 {[%emt 0:00:05]} e5 {[%emt 0:00:15]} 4. Bxc4 {[%emt 0:00:15]} exd4 {[%emt 0:00:37]} 5. exd4 {[%emt 0:00:13]} Nf6 {[%emt 0:00:42]} 6. Nf3 {[%emt 0:01:05]} Bd6 {[%emt 0:00:57]} 7. O-O {[%emt 0:00:42]} O-O {[%emt 0:00:37]} 8. Nc3 {[%emt 0:02:29]} Bg4 {[%emt 0:01:42]} 9. Nb5 {[%emt 0:03:52]} c6 {[%emt 0:02:02]} 10. Nxd6 {[%emt 0:01:28]} Qxd6 {[%emt 0:00:10]} 11. Be3 {[%emt 0:00:37]} Nbd7 {[%emt 0:01:19]} 12. Be2 {[%emt 0:01:49]} Nd5 {[%emt 0:01:54]} 13. Qd2 {[%emt 0:17:24]} Rfe8 {[%emt 0:04:32]} 14. Rae1 {[%emt 0:09:02]} N7f6 {[%emt 0:09:09]} 15. Ne5 {[%emt 0:07:26]} Nxe3 {[%emt 0:02:49]} 16. Qxe3 {[%emt 0:02:52]} Bxe2 {[%emt 0:00:32]} 17. Rxe2 {[%emt 0:00:42]} Nd5 {[%emt 0:09:59]} 18. Qf3 {[%emt 0:10:31]} Qf6 {[%emt 0:02:44]} 19. Qg3 {[%emt 0:14:22]} Qf4 {[%emt 0:04:38]} 20. Qd3 {[%emt 0:03:23]} Rad8 {[%emt 0:19:02]} 21. Rfe1 {[%emt 0:12:35]} f6 {[%emt 0:06:02]} 22. Nd7 {[%emt 0:04:43]} Rxe2 {[%emt 0:00:45]} 23. Qxe2 {[%emt 0:00:07]} Qf5 {[%emt 0:09:43]} 24. Nc5 {[%emt 0:00:39]} b6 {[%emt 0:01:26]} 25. Nd3 {[%emt 0:03:05]} Qd7 {[%emt 0:01:37]} 26. Qe6+ {[%emt 0:02:13]} Qxe6 {[%emt 0:00:08]} 27. Rxe6 {[%emt 0:00:01]} c5 {[%emt 0:00:11]} 28. Re4 {[%emt 0:01:46]} Nc7 {[%emt 0:01:16]} 29. Re7 {[%emt 0:00:35]} Rxd4 {[%emt 0:06:30]} 30. Rxc7 {[%emt 0:00:25]} Rxd3 {[%emt 0:00:10]} 31. g3 {[%emt 0:00:34]} Rd2 {[%emt 0:00:20]} 32. Rxa7 {[%emt 0:00:28]} Rxb2 {[%emt 0:00:15]} 33. Rb7 {[%emt 0:00:33]} c4 {[%emt 0:02:53]} 34. Rc7 {[%emt 0:00:19]} Rxa2 {[%emt 0:02:29]} 35. Rxc4 {[%emt 0:00:08]} Ra7 {[%emt 0:00:14]} 36. Rc8+ {[%emt 0:00:46]} Kf7 {[%emt 0:00:10]} 37. Rb8 {[%emt 0:00:03]} Ra6 {[%emt 0:00:09]} 38. Rb7+ {[%emt 0:00:23]} Kg6 {[%emt 0:00:08]} 39. g4 {[%emt 0:01:00]} Ra1+ {[%emt 0:00:22]} 40. Kg2 {[%emt 0:00:00]} Rb1 {[%emt 0:00:00]} 41. h4 {[%emt 0:12:57]} b5 {[%emt 0:03:28]} *

[Event "FIDE WYCC Girls U14 2023"]
[Site "Montesilvano"]
[Date "2023.11.17"]
[Round "5.23"]
[White "Orazalina, Nursulu"]
[Black "Smietanska, Wiktoria"]
[Result "1/2-1/2"]
[ECO "B90"]
[WhiteElo "1428"]
[BlackElo "2009"]
[Annotator "NA"]
[PlyCount "125"]
[EventDate "2023.11.13"]
[EventType "swiss"]
[EventCountry "ITA"]
[SourceTitle "playchess.com"]
[Source "ChessBase"]
[SourceQuality "1"]
[TimeControl "40/5400+30:1800+30"]

1. e4 {[%emt 0:00:02]} c5 {[%emt 0:00:06]} 2. Nf3 {[%emt 0:00:05]} d6 {[%emt 0:00:09]} 3. d4 {[%emt 0:00:05]} cxd4 {[%emt 0:00:07]} 4. Nxd4 {[%emt 0:00:07]} Nf6 {[%emt 0:00:07]} 5. Nc3 {[%emt 0:00:08]} a6 {[%emt 0:00:09]} 6. f3 {[%emt 0:00:08]} e5 {[%emt 0:00:04]} 7. Nb3 {[%emt 0:00:05]} Be6 {[%emt 0:00:08]} 8. Be3 {[%emt 0:00:06]} h5 {[%emt 0:00:07]} 9. Be2 {[%emt 0:20:41]} Nbd7 {[%emt 0:02:12]} 10. Qd2 {[%emt 0:03:46]} Rc8 {[%emt 0:03:42]} 11. O-O-O {[%emt 0:09:18]} Be7 {[%emt 0:03:21]} 12. Kb1 {[%emt 0:05:47]} b5 {[%emt 0:03:38]} 13. Nd5 {[%emt 0:01:45]} Nxd5 {[%emt 0:03:10]} 14. exd5 {[%emt 0:00:13]} Bf5 {[%emt 0:00:06]} 15. Bd3 {[%emt 0:00:07]} Bxd3 {[%emt 0:02:36]} 16. Qxd3 {[%emt 0:00:07]} Nb6 {[%emt 0:04:07]} 17. Na5 {[%emt 0:19:24]} Qc7 {[%emt 0:06:41]} 18. Bxb6 {[%emt 0:00:23]} Qxb6 {[%emt 0:00:12]} 19. Nc6 {[%emt 0:00:06]} Bf6 {[%emt 0:03:30]} 20. Qf5 {[%emt 0:06:20]} Rc7 {[%emt 0:04:08]} 21. f4 {[%emt 0:02:10]} exf4 {[%emt 0:07:39]} 22. Rhe1+ {[%emt 0:00:39]} Kf8 {[%emt 0:00:24]} 23. Qxf4 {[%emt 0:03:06]} Qc5 {[%emt 0:05:18]} 24. Re2 {[%emt 0:09:03]} Rc8 {[%emt 0:07:50]} 25. Qf3 {[%emt 0:02:50]} Rh6 {[%emt 0:05:34]} 26. Rde1 {[%emt 0:01:38]} g5 {[%emt 0:11:48]} 27. Qd3 {[%emt 0:08:43]} Kg7 {[%emt 0:01:20]} 28. Rf1 {[%emt 0:01:00]} Rg6 {[%emt 0:05:52]} 29. Ref2 {[%emt 0:00:14]} Re8 {[%emt 0:00:32]} 30. Rf5 {[%emt 0:03:23]} Qe3 {[%emt 0:09:42]} 31. Qxe3 {[%emt 0:00:04]} Rxe3 {[%emt 0:00:08]} 32. R5f2 {[%emt 0:00:30]} h4 {[%emt 0:01:29]} 33. Nb8 {[%emt 0:00:28]} Re7 {[%emt 0:02:11]} 34. Nxa6 {[%emt 0:00:48]} Be5 {[%emt 0:00:24]} 35. h3 {[%emt 0:00:43]} Bg3 {[%emt 0:00:30]} 36. Rd2 {[%emt 0:00:54]} Rf6 {[%emt 0:01:00]} 37. Rg1 {[%emt 0:01:27]} Be1 {[%emt 0:06:19]} 38. Rd1 {[%emt 0:01:21]} Bf2 {[%emt 0:00:08]} 39. Rh1 {[%emt 0:01:02]} Re2 {[%emt 0:00:09]} 40. Nb4 {[%emt 0:00:00]} Bg3 {[%emt 0:00:00]} 41. Rdg1 {[%emt 0:03:23]} Rff2 {[%emt 0:02:06]} 42. b3 {[%emt 0:00:15]} Rxg2 {[%emt 0:02:15]} 43. Rxg2 {[%emt 0:00:07]} Rxg2 {[%emt 0:00:05]} 44. a4 {[%emt 0:00:13]} bxa4 {[%emt 0:00:34]} 45. bxa4 {[%emt 0:00:05]} Bf2 {[%emt 0:01:23]} 46. a5 {[%emt 0:03:50]} Rg1+ {[%emt 0:04:08]} 47. Rxg1 {[%emt 0:00:31]} Bxg1 {[%emt 0:00:04]} 48. Nd3 {[%emt 0:01:45]} g4 {[%emt 0:00:58]} 49. Nf4 {[%emt 0:00:09]} gxh3 {[%emt 0:02:35]} 50. Nxh3 {[%emt 0:00:07]} Be3 {[%emt 0:00:37]} 51. c4 {[%emt 0:00:51]} Kf6 {[%emt 0:02:15]} 52. Kc2 {[%emt 0:00:14]} Kf5 {[%emt 0:01:08]} 53. Kd3 {[%emt 0:00:06]} Ba7 {[%emt 0:14:15]} 54. Ke2 {[%emt 0:00:08]} Kg4 {[%emt 0:01:55]} 55. Nf2+ {[%emt 0:00:10]} Kg3 {[%emt 0:04:51]} 56. Ne4+ {[%emt 0:00:09]} Kf4 {[%emt 0:00:40]} 57. Nxd6 {[%emt 0:10:56]} h3 {[%emt 0:00:24]} 58. Kf1 {[%emt 0:00:14]} Kf3 {[%emt 0:01:01]} 59. Nxf7 {[%emt 0:01:09]} h2 {[%emt 0:00:38]} 60. Ng5+ {[%emt 0:00:10]} Kg3 {[%emt 0:00:27]} 61. Ne4+ {[%emt 0:00:08]} Kf3 {[%emt 0:00:31]} 62. Ng5+ {[%emt 0:00:06]} Kg3 {[%emt 0:00:07]} 63. Ne4+ {[%emt 0:00:06]} 1/2-1/2

[Event "FIDE WYCC Girls U14 2023"]
[Site "Montesilvano"]
[Date "2023.11.17"]
[Round "5.24"]
[White "Jiang, Tianyu"]
[Black "Haapsal, Maria Ioanna"]
[Result "1-0"]
[ECO "B45"]
[WhiteElo "1917"]
[BlackElo "1597"]
[Annotator "NA"]
[PlyCount "61"]
[EventDate "2023.11.13"]
[EventType "swiss"]
[EventCountry "ITA"]
[SourceTitle "playchess.com"]
[Source "ChessBase"]
[SourceQuality "1"]
[TimeControl "40/5400+30:1800+30"]

1. e4 {[%emt 0:00:03]} c5 {[%emt 0:00:09]} 2. Nf3 {[%emt 0:00:08]} e6 {[%emt 0:00:13]} 3. d4 {[%emt 0:00:06]} cxd4 {[%emt 0:00:08]} 4. Nxd4 {[%emt 0:00:02]} Nc6 {[%emt 0:00:17]} 5. Nc3 {[%emt 0:00:06]} Nf6 {[%emt 0:00:10]} 6. Nxc6 {[%emt 0:00:43]} bxc6 {[%emt 0:00:13]} 7. e5 {[%emt 0:00:04]} Nd5 {[%emt 0:00:19]} 8. Ne4 {[%emt 0:00:07]} Qc7 {[%emt 0:01:29]} 9. f4 {[%emt 0:00:14]} Qb6 {[%emt 0:00:52]} 10. a3 {[%emt 0:01:03]} f5 {[%emt 0:18:53]} 11. exf6 {[%emt 0:00:32]} Nxf6 {[%emt 0:00:40]} 12. Nxf6+ {[%emt 0:02:06]} gxf6 {[%emt 0:00:11]} 13. b3 {[%emt 0:07:25]} Bc5 {[%emt 0:03:04]} 14. Qf3 {[%emt 0:23:11]} a5 {[%emt 0:04:30]} 15. Bb2 {[%emt 0:12:32]} Bd4 {[%emt 0:07:48]} 16. O-O-O {[%emt 0:12:28]} Bxb2+ {[%emt 0:01:50]} 17. Kxb2 {[%emt 0:00:02]} Bb7 {[%emt 0:12:18]} 18. Bc4 {[%emt 0:18:09]} d5 {[%emt 0:14:27]} 19. Qg4 {[%emt 0:14:21]} Kf7 {[%emt 0:09:42]} 20. Rhe1 {[%emt 0:00:40]} Rae8 {[%emt 0:03:40]} 21. Qh5+ {[%emt 0:00:44]} Ke7 {[%emt 0:05:21]} 22. Qh6 {[%emt 0:00:27]} Kf7 {[%emt 0:01:55]} 23. Be2 {[%emt 0:00:39]} Reg8 {[%emt 0:04:34]} 24. Qh5+ {[%emt 0:00:08]} Rg6 {[%emt 0:04:16]} 25. Bd3 {[%emt 0:00:35]} f5 {[%emt 0:01:44]} 26. g4 {[%emt 0:00:12]} Qd4+ {[%emt 0:01:56]} 27. Kb1 {[%emt 0:00:08]} Qg7 {[%emt 0:02:34]} 28. gxf5 {[%emt 0:00:19]} exf5 {[%emt 0:00:05]} 29. Qxf5+ {[%emt 0:00:32]} Rf6 {[%emt 0:00:58]} 30. Qd7+ {[%emt 0:00:35]} Kf8 {[%emt 0:00:09]} 31. Re8# {[%emt 0:00:09]} 1-0

[Event "FIDE WYCC Girls U14 2023"]
[Site "Montesilvano"]
[Date "2023.11.17"]
[Round "5.25"]
[White "Sun, Wanyao Sarah"]
[Black "Toth, Lili"]
[Result "1/2-1/2"]
[ECO "C44"]
[WhiteElo "1593"]
[BlackElo "2199"]
[Annotator "ChessBase"]
[PlyCount "88"]
[EventDate "2023.11.13"]
[EventType "swiss"]
[EventCountry "ITA"]
[SourceTitle "playchess.com"]
[Source "ChessBase"]
[SourceQuality "1"]
[TimeControl "40/5400+30:1800+30"]

1. e4 {[%emt 0:00:07]} e5 {[%emt 0:00:09]} 2. Nf3 {[%emt 0:00:06]} Nc6 {[%emt 0:00:05]} 3. d4 {[%emt 0:00:08]} exd4 {[%emt 0:00:06]} 4. Nxd4 {[%emt 0:00:07]} Nf6 {[%emt 0:00:05]} 5. Nc3 {[%emt 0:00:09]} Nxe4 {[%emt 0:00:12]} 6. Nxe4 {[%emt 0:14:26]} Qe7 {[%emt 0:02:58]} 7. f3 {[%emt 0:01:02]} d5 {[%emt 0:00:40]} 8. Nxc6 {[%emt 0:01:25]} bxc6 {[%emt 0:00:50]} 9. Qe2 {[%emt 0:03:16]} dxe4 {[%emt 0:01:08]} 10. Qxe4 {[%emt 0:01:24]} Qxe4+ {[%emt 0:00:40]} 11. fxe4 {[%emt 0:00:07]} Bd6 12. Bc4 {[%emt 0:00:51]} Rb8 {[%emt 0:03:42]} 13. O-O {[%emt 0:01:45]} f6 {[%emt 0:02:11]} 14. Be3 {[%emt 0:01:35]} a5 {[%emt 0:07:48]} 15. Bb3 {[%emt 0:05:00]} Ke7 {[%emt 0:09:25]} 16. Rae1 {[%emt 0:03:41]} Be6 {[%emt 0:09:19]} 17. Bxe6 {[%emt 0:01:43]} Kxe6 {[%emt 0:01:19]} 18. b3 {[%emt 0:01:14]} a4 {[%emt 0:09:01]} 19. Bd4 {[%emt 0:05:51]} Rhd8 {[%emt 0:06:23]} 20. Bc3 {[%emt 0:01:47]} Bc5+ {[%emt 0:11:00]} 21. Kh1 {[%emt 0:00:20]} Bd4 {[%emt 0:01:15]} 22. Bxd4 {[%emt 0:00:36]} Rxd4 {[%emt 0:00:08]} 23. Rf2 {[%emt 0:00:29]} c5 {[%emt 0:07:09]} 24. h3 {[%emt 0:04:13]} axb3 {[%emt 0:02:45]} 25. cxb3 {[%emt 0:06:37]} c4 {[%emt 0:02:00]} 26. Rc2 {[%emt 0:01:09]} cxb3 {[%emt 0:00:43]} 27. axb3 {[%emt 0:00:06]} Kd6 {[%emt 0:07:43]} 28. Re3 {[%emt 0:02:45]} c5 {[%emt 0:01:23]} 29. g4 {[%emt 0:01:13]} Rbb4 {[%emt 0:03:23]} 30. Rec3 {[%emt 0:01:07]} Rb5 {[%emt 0:02:27]} 31. Ra2 {[%emt 0:01:07]} Rb7 {[%emt 0:03:51]} 32. Ra6+ {[%emt 0:01:56]} Ke5 {[%emt 0:00:42]} 33. Rxc5+ {[%emt 0:00:11]} Kxe4 {[%emt 0:00:49]} 34. Rc3 {[%emt 0:00:39]} Rd1+ {[%emt 0:01:03]} 35. Kg2 {[%emt 0:00:22]} Rb1 {[%emt 0:00:38]} 36. Rc4+ {[%emt 0:03:14]} Kd5 {[%emt 0:01:08]} 37. Rc3 {[%emt 0:02:10]} Rb2+ {[%emt 0:03:21]} 38. Kg1 {[%emt 0:01:08]} R2xb3 {[%emt 0:00:25]} 39. Rxb3 {[%emt 0:00:40]} Rxb3 {[%emt 0:00:02]} 40. Kg2 {[%emt 0:00:00]} Rb7 {[%emt 0:00:00]} 41. Kg3 {[%emt 0:02:32]} Ke5 {[%emt 0:01:43]} 42. Ra5+ {[%emt 0:00:13]} Ke6 {[%emt 0:00:19]} 43. Kf4 {[%emt 0:01:58]} Rb4+ {[%emt 0:00:13]} 44. Kg3 {[%emt 0:00:14]} Rb3+ {[%emt 0:01:55]} 1/2-1/2